Workbook

Sheet Instructions
B2: Instructions
A4: 1 | B4: The Cost Estimate Summary tab serves as the data entry tab for the workbook.
A5: 2 | C5: When entering data, please note that green cells require input.
A6: 3 | C6: Grey cells do not require input
A7: 4 | B7: Ensure input where required. If no value then enter "0"
A8: 5 | B8: Complete the general information portion at the top of the sheet.
A9: 6 | B9: Drop down lists are provided for County/City/State, tier level and stage of development.
A10: 7 | B10: Preliminary Engineering Phase costs include all expenses charged by the design staff (VDOT or Consultant) of each discipline through the advertisement of the project. Any of the support during the CN phase would be included in the CEI estimate.
A11: 8 | B11: When using discipline only contingencies, Source, Defined, Allowances, Risk Type, and Contingencies should be entered in order for the total column to be calculated.
A12: 9 | B12: When a complete phase contingency is selected and discipline contingencies are both selected an error message will appear.
A13: 10 | B13: Discipline costs that span project development phases are to be shown in the phase that the time is charged. It can be captured in a discipline or in oversight, depending on what is appropriate.
A14: 11 | B14: Right of Way & Utilities Phase costs include all expenses for right of way acquisition and utility relocations.
A15: 12 | B15: Construction Phase costs include all expenses incurred from award to construction completion.
A16: 13 | B16: Defined values, Allowances and Contingencies should be entered for each of the applicable disciplines. Refer to the contingencies shown in Chapter 5 of the Cost Estimating manual for assistance determining the correct contingency percentage. The contingencies provided in the sliding scales are provided as a cross check. They are intended to supplement and aid the estimator's engineering and human judgment.
A17: 14 | B17: Major assumptions in Defined numbers and selection of contingency percentage needs to be documented in the "Assumptions" column.
A18: 15 | B18: Application estimates should use their submitted schedule
A19: 16 | B19: Once all applicable fields have been entered and you are comfortable with the output, select the blue button corresponding to your current project milestone to transfer your estimate to the Cost Estimate Tracking tab
A20: 17 | B20: A feature has been added on the "Inflation Summary & Upload" sheet that enables the transer of CEWB estimate data to your PCES Workbook.

Sheet Cost Estimate Summary
B2: SYIP PROJECTS DETAILED PROJECT COST ESTIMATE SUMMARY (Version 2.2: 7/7/2023) | J2: Green Cells require input. Allowance / Contingency are not necessarily required. All others are auto calculating. Estimate to be entered based on current dollars and inflation will be applied at the bottom of this workbook for informational purposes only.
B3: Portal ID: | F3: Project UPC: | P3: Select Phase Risk Type Here (when using different contingency values for each discipline) | U3: Select Phase Risk Type Here (when using one phase contingency value)
B4: Prepared By: | F4: Milestone | G4: Select | P4: Type 1 Percentage | R4: $ | U4: Type 1 Percentage
B5: Reviewed By: | P5: Type 2 Deterministic | R5: % | U5: Type 2 Deterministic
B6: Project Location: | C6: Locality Type | D6: Locality Name | F6: Tier Level | G6: Select
B7: Project Complexity Classification | C7: Select Project Classification | U7: Select
U8: Type 1 Percentage
B9: Preliminary Engineering Phase | D9: 7 | E9: Do not enter a negative value for defined or allowance; Ensure input where required. If no value then enter "0" | P9: Select | U9: Type 2 Deterministic
B10: Project Estimate Component | P10: Percentage
B11: Discipline | C11: Source | D11: Defined($) | E11: Allowance* | F11: Risk Type | G11: Contingency % (Value of Risk) | H11: Total | J11: Assumptions | P11: Lump Sum
B12: Project Management | C12: Select | H12: =IF(C12="Select",0,(D12+E12)) -> 0
B13: Roadway | C13: Select | H13: =IF(C13="Select",0,(D13+E13)) -> 0
B14: Hydraulics | C14: Select | H14: 0
B15: Utilities | C15: Select | H15: 0 | P15: CEI Environmental Inspection (Enter %)
B16: Traffic | C16: Select | H16: 0 | P16: CEI VDOT or Locality (Enter %)
B17: Structures/Bridges | C17: Select | H17: 0 | P17: CEI Oversight Costs (Enter %)
B18: Materials/Geotech | C18: Select | H18: 0
B19: Survey/SUE/Quality Level A SUE | C19: Select | H19: 0
B20: Environmental | C20: Select | H20: 0 | P20: CEI Environmental Inspection (Enter Lump Sum)
B21: Right of Way | C21: Select | H21: 0 | P21: CEI VDOT or Locality (Enter Lump Sum)
B22: Other | C22: Select | H22: 0 | P22: CEI Oversight Costs (Enter Lump Sum)
B23: VDOT PE Oversight on Local Assistance Projects | C23: Total entered from LAD Spreadsheet | H23: Input Req'd
C24: SUBTOTAL PE PHASE ESTIMATE (Without Contingency) | D24: =SUM(D12:D22) -> 0 | E24: =SUM(E12:E22) -> 0 | F24: Select Phase Risk Type Below | G24: =IF(F25="Type 1 Percentage","Contingency % (Value of Risk)",IF(F25="Type 2 Deterministic","Contingency $ (Value of Risk)","Contingency")) -> Contingency
B25: Phase Risk Type and Contingency (Value of Risk): For Type 1 enter % amount; For Type 2 enter $ amount | F25: Select | H25: =IF(F25="type 1 Percentage",(D24+E24)*((G25/100)),IF(F25="type 2 Deterministic",G25,0)) -> 0 | P25: CEI Environmental Inspection
G26: TOTAL PE PHASE ESTIMATE | H26: =IF(F25="Select",SUM(H12:H23),SUM(H12:H23,H25)) -> 0 | P26: CEI VDOT or Locality
B27: Phase dates (XX/XX/XXXX) | C27: PE Base Estimate Date | P27: CEI Oversight Costs
C28: Start Date
C29: End Date
B31: Right-of-Way & Utilities Phase | E31: Do not enter a negative value for defined or allowance costs; For Contingency Values please refer to the ROW Cost Estimate Guide Section 8
B32: Discipline | C32: Source | D32: Defined ($) | E32: Allowance* | F32: Select Phase Risk Type Here (when using different contingency values for each discipline) | G32: =IF(F32="Type 1 Percentage","Contingency (% of Risk)",IF(F32="Type 2 Deterministic","Contingency $ (Value of Risk)","Contingency (Value of Risk)")) -> Contingency (Value of Risk) | H32: Total | J32: Assumptions
B33: Right-of-Way Acquisition | C33: Select | H33: =IF(AND(C33="select"),0,IF(F32="type 1 Percentage",(D33+E33)*((1+(G33/100))),IF(F32="type 2 Deterministic",D33+E33+G33,IF(F39="type 1 Percentage",(D33+E33),IF(F39="type 2 Deterministic",D33+E33,0))))) -> 0
B34: Utilities | C34: Select | H34: =IF(AND(C34="select"),0,IF(F32="type 1 Percentage",(D34+E34)*((1+(G34/100))),IF(F32="type 2 Deterministic",D34+E34+G34,IF(F39="type 1 Percentage",(D34+E34),IF(F39="type 2 Deterministic",D34+E34,0))))) -> 0
B35: VDOT Project RW/UT Oversight | C35: Select | H35: =IF(AND(C35="select"),0,IF(F32="type 1 Percentage",(D35+E35)*((1+(G35/100))),IF(F32="type 2 Deterministic",D35+E35+G35,IF(F39="type 1 Percentage",(D35+E35),IF(F39="type 2 Deterministic",D35+E35,0))))) -> 0
B36: VDOT RW/UT Oversight on Local Assistance Projects | C36: Total entered from LAD Spreadsheet | H36: Input Req'd
B38: SUBTOTAL RW PHASE ESTIMATE (Without Contingency) | D38: =SUM(D33:D35) -> 0 | E38: =SUM(E33:E35) -> 0 | F38: RW Contingency: | G38: =IF(AND(F39="Select Phase Risk Type Here (when using one phase contingency value)",F32="Type 1 percentage"),(SUM(H33:H35)-SUM(D38:E38))/SUM(D38:E38),IF(AND(F39="Select Phase Risk Type Here (when using one phase contingency value)",F32="Type 2 Deterministic"),(H33+H34+H35-D38-E38)/(D38+E38)*100,IF(AND(F32="Select Phase Risk Type Here (when using different contingency values for each discipline)",F39="Type 2 Deterministic"),G39/(D38+E38),IF(AND(F32="Select Phase Risk Type Here (when using different contingency values for each discipline)",F39="Type 1 Percentage"),G39/100,"")))) ->  | H38: =ABS(SUM(H33:H35)-SUM(D33:E35)) -> 0
B39: Phase Risk Type and Contingency (Value of Risk): Use only if applying one contingency to entire phase. For Type 1 enter % amount; For Type 2 enter $ amount | F39: Select Phase Risk Type Here (when using one phase contingency value) | H39: =IF((G38)<0, "Complete Inputs from C33 to C35 if available", IF(AND(F32="Select Phase Risk Type Here (when using different contingency values for each discipline)",F39="Select Phase Risk Type Here (when using one Phase contingency value)"),SUM(H33:H35),IF(AND(F32="Select Phase Risk Type Here (when using different contingency values for each discipline)",F39="type 2 Deterministic"),G39,IF(AND(F32="Select Phase Risk Type Here (when using different contingency values for each discipline)",F39="type 1 Percentage"),(G39/100)*(H33+H34+H35),IF(AND(F32="type 1 Percentage",F39="Select Phase Risk Type Here (when using one phase contingency value)"),H33+H34+H35-D38-E38,IF(AND(F32="type 2 Deterministic",F39="Select Phase Risk Type Here (when using one phase contingency value)"),H33+H34+H35-D38-E38,"Select one risk type")))))) -> 0
B40: TOTAL RW PHASE ESTIMATE | H40: =IF(AND(F32="Type 1 percentage",F39="Select Phase Risk Type Here (when using one phase contingency value)"),SUM(H33:H36),IF(AND(F32="type 2 Deterministic",F39="Select Phase Risk Type Here (when using one phase contingency value)"),SUM(H33:H36),IF(AND(F32="Select Phase Risk Type Here (when using different contingency values for each discipline)",F39="type 1 percentage"),SUM(H33:H36,H39),IF(AND(F32="Select Phase Risk Type Here (when using different contingency values for each discipline)",F39="type 2 Deterministic"),SUM(H33:H36,H39),SUM(H33:H36,H39))))) -> 0
B41: Phase dates (XX/XX/XXXX) | C41: RW Base Estimate Date
C42: Start Date
C43: End Date
B45: Construction Phase | E45: Do not enter a negative value for defined or allowance costs; Ensure input where required. If no value then enter "0"; "0" will result in a gray cell; Total shown is dependent on Risk Type (Phase or Discipline)
B46: Discipline | C46: Source | D46: Defined ($) | E46: Allowance* | F46: Discipline Risk Type (Use when selecting many) | G46: Contingency (Value of or % of Risk) | H46: Total | J46: Assumptions
B47: Mobilization/Construction Support | C47: Select | D47: Input Req'd | E47: Input Req'd | F47: Select | H47: =IF(AND(C47="select"),0,IF(AND(F47="Select",$F$68="Select"),SUM(D47:E47),IF(AND(F47="Select",$F$68<>"Select"),SUM(D47:E47),IF(AND(F47="type 1 Percentage",$F$68="Select"),(SUM(D47:E47)*((1+(G47)/100))),IF(AND($F$68="Select",F47="type 2 Deterministic"),SUM(D47,E47,G47),IF(AND(F47<>"Select",$F$68<>"Select"),"Remove Phase or Change Discipline Risk type to 'Select'")))))) -> 0
B48: MOT | C48: Select | D48: Input Req'd | E48: Input Req'd | F48: Select | H48: 0
B49: Roadway | C49: Select | D49: Input Req'd | E49: Input Req'd | F49: Select | H49: 0
B50: Hydraulics | C50: Select | D50: Input Req'd | E50: Input Req'd | F50: Select | H50: 0
B51: In-plan Utilities | C51: Select | D51: Input Req'd | E51: Input Req'd | F51: Select | H51: 0
B52: Traffic | C52: Select | D52: Input Req'd | E52: Input Req'd | F52: Select | H52: 0
B53: Structures/Bridges | C53: Select | D53: Input Req'd | E53: Input Req'd | F53: Select | H53: 0
B54: Earthwork/Geotech | C54: Select | D54: Input Req'd | E54: Input Req'd | F54: Select | H54: 0
B55: Environmental/Soundwalls | C55: Select | D55: Input Req'd | E55: Input Req'd | F55: Select | H55: 0
B56: Other | C56: Select | D56: Input Req'd | E56: Input Req'd | F56: Select | H56: 0
C57: Total Bid Items | D57: =SUM(D47:D56) -> 0 | E57: =SUM(E47:E56) -> 0 | G57: 0 | H57: =SUM(H47:H56) -> 0
B58: VDOT Project CN Oversight | C58: Select | D58: Input Req'd | E58: Input Req'd | F58: Select | H58: =IF(AND(C58="select",F58="Select"),SUM(D58:E58),IF(AND(F58="Select",$F$68="Select"),SUM(D58:E58),IF(AND(F58="Select",$F$68<>"Select"),SUM(D58:E58),IF(AND(F58="type 1 Percentage",$F$68="Select"),(D58+E58)*((1+(G58)/100)),IF(AND($F$68="Select",F58="type 2 Deterministic"),D58+E58+G58,IF(AND(F58<>"Select",$F$68<>"Select"),"Remove Phase or Change Discipline Risk type to 'Select'")))))) -> 0
B59: VDOT CN Oversight on Local Assistance Projects | C59: Total entered from LAD Spreadsheet | H59: Input Req'd
G60: Oversight Total | H60: =SUM(H58:H59) -> 0
B61: Management Reserve / Construction Contract Contingency Per IIM-LD-249 | C61: Select | D61: Cell C61 is multiplied by the Total Bid Items Cost (H57) to get H61 | H61: =IF(C61="select",0,($H$57)*C61) -> 0
B62: Railroad Flagging/Coordination | D62: Input Req'd | E62: Input Req'd | F62: Select | H62: =IF(AND(F62="Select",$F$68="Select"),SUM(D62:E62),IF(AND(F62="Select",$F$68<>"Select"),SUM(D62:E62),IF(AND(F62="type 1 Percentage",$F$68="Select"),SUM(D62:E62)*((1+(G62)/100)),IF(AND($F$68="Select",F62="type 2 Deterministic"),SUM(D62:E62:G62),IF(AND(F62<>"Select",$F$68<>"Select"),"Remove Phase or Change Discipline Risk type to 'Select'"))))) -> 0
B63: State Forces | D63: Input Req'd | E63: Input Req'd | F63: Select | H63: =IF(AND(F63="Select",$F$68="Select"),SUM(D63:E63),IF(AND(F63="Select",$F$68<>"Select"),SUM(D63:E63),IF(AND(F63="type 1 Percentage",$F$68="Select"),SUM(D63:E63)*((1+(G63)/100)),IF(AND($F$68="Select",F63="type 2 Deterministic"),SUM(D63:E63:G63),IF(AND(F63<>"Select",$F$68<>"Select"),"Remove Phase or Change Discipline Risk type to 'Select'"))))) -> 0
B64: State Police | D64: Input Req'd | E64: Input Req'd | F64: Select | H64: =IF(AND(F64="Select",$F$68="Select"),SUM(D64:E64),IF(AND(F64="Select",$F$68<>"Select"),SUM(D64:E64),IF(AND(F64="type 1 Percentage",$F$68="Select"),SUM(D64:E64)*((1+(G64)/100)),IF(AND($F$68="Select",F64="type 2 Deterministic"),SUM(D64:E64:G64),IF(AND(F64<>"Select",$F$68<>"Select"),"Remove Phase or Change Discipline Risk type to 'Select'"))))) -> 0
B65: Contract Requirements (Incentive/Disincentive; 5% max) | C65: Select | D65: Cell C65 is multiplied by the Total Bid Items Cost (H57) to get H65 | H65: =IF(C65="select",0,($H$57)*C65) -> 0
B66: Total Non-Bid Items | D66: =SUM(D61:D65) -> 0 | E66: =SUM(E61:E65) -> 0 | H66: =SUM(H61:H65) -> 0 | J66: r
B68: Phase Risk Type and Contingency (Value of Risk): Use only if applying one contingency to entire phase. For Type 1 enter % amount; For Type 2 enter $ amount | F68: Select | H68: =IF(F68="type 1 Percentage",((SUM(H47:H56)+SUM(H62:H64)+SUM(H58)))*((G68/100)),IF(F68="type 2 Deterministic",G68,0)) -> 0
C69: See Section 5.4.3 in PreCON Manual | G69: Total CN Estimate without CEI | H69: =SUM(H68,H66,H60,H57) -> 0
B70: Construction Engineering (CEI) Source: | D70: Select | E70: =IF(D70="Select","Please select Percentage or Lump Sum from Cell D70",IF(D70="Percentage","CEI is calculated as a "&D70&" value of the Total Bid Items Cost (H57)",IF(D70="Lump Sum","CEI is calculated as a Lump Sum input in Cells C71-C73 below by estimator"))) -> Please select Percentage or Lump Sum from Cell D70
B71: =IF($D$70=$P$9,P25,IF($D$70=$P$10,P15,P20)) -> CEI Environmental Inspection | D71: =IF(C71="","",IF($D$70=$P$10,(C71*($H$57))/100,C71)) ->  | F71: Select | G71: 0 | H71: =IF(AND($D$70="select",C71=0),0,IF(AND($D$70=$P$10,F71="Type 1 Percentage",C71<>""),(D71)+(D71)*(G71/100),IF(AND($D$70=$P$10,F71="Type 2 Deterministic",C71<>""),(D71+G71),IF(AND($D$70=$P$11,F71="Type 1 Percentage",C71<>""),(D71)+(D71)*(G71/100),IF(AND($D$70=$P$11,F71="Type 2 Deterministic",C71<>""),D71+G71,D71))))) -> 0
B72: =IF($D$70=$P$9,P26,IF($D$70=$P$10,P16,P21)) -> CEI VDOT or Locality | D72: =IF(C72="","",IF($D$70=$P$10,(C72*($H$57))/100,C72)) ->  | F72: Select | G72: 0 | H72: =IF(AND($D$70="select",C72=0),0,IF(AND($D$70=$P$10,F72="Type 1 Percentage",C72<>""),(D72)+(D72)*(G72/100),IF(AND($D$70=$P$10,F72="Type 2 Deterministic",C72<>""),(D72+G72),IF(AND($D$70=$P$11,F72="Type 1 Percentage",C72<>""),(D72)+(D72)*(G72/100),IF(AND($D$70=$P$11,F72="Type 2 Deterministic",C72<>""),D72+G72,D72))))) -> 0
B73: CEI Oversight Costs | D73: =IF(C73="","",IF($D$70=$P$10,(C73*($H$57))/100,C73)) ->  | F73: Select | G73: 0 | H73: 0
G74: Total CEI | H74: =SUM(H71:H73) -> 0
G75: Total CN Estimate | H75: =SUM(H74,H69) -> 0
B76: Phase dates (XX/XX/XXXX) | C76: CN Base Estimate Date
C77: Start Date
C78: End Date
G80: TOTAL PROJECT COST ESTIMATE (excluding inflation) (PE+RW+CN) | H80: =SUM(H26,H40,H75) -> 0
B82: Total Project Cost Estimate Summary | F82: Date of Current Cost
F83: Enter date here
B84: Phase | C84: Estimate ($) without LAP OVERSIGHT COST | D84: Contingency ($) | F84: Total Phase*
B85: PE Phase Estimate | C85: =SUM(D24:E24) -> 0 | D85: =IF(H23="input Req'd",(H26-D24-E24),H26-D24-E24-H23) -> 0 | F85: =IF(H26=(SUM(C85,D85,H23)),(SUM(C85,D85,H23)),"Review PE Estimate") -> 0
B86: RW Phase Estimate | C86: =SUM(D38:E38) -> 0 | D86: =IF(SUM(H33:H35)=0, 0, IF(F39="Type 2 Deterministic",G39,IF(F39="Type 1 Percentage",H39,(SUM(H33,H34,H35-D38-E38))))) -> 0 | F86: =IF(H40=(SUM(C86,D86,H36)),(SUM(C86,D86,H36)),"Review R/W Estimate") -> 0
B87: CN Phase Estimate(without CEI) | C87: =SUM(D57:E58)+SUM(D66:E66)+H61+H65 -> 0 | D87: =IF($F$68="Type 1 Percentage",H68,IF($F$68="Type 2 Deterministic",H68,IF($F$68="Select",(SUM(H57:H58,H62:H64)-(SUM(D57:E58,D62:E64)))))) -> 0 | F87: =IF(H69=(SUM(C87,D87,H59)),(SUM(C87,D87,H59)),"Review CN Estimate") -> 0
B88: Total CEI | C88: =SUM(D71:E73) -> 0 | D88: =H74-SUM(D71:E73) -> 0 | F88: =IF(H74=(SUM(C88,D88)),(SUM(C88,D88)),"Review CEI Estimate") -> 0
B89: CN Phase Estimate(with CEI) | C89: =SUM(C87:C88) -> 0 | D89: =D87+D88 -> 0 | F89: =IF(H75=(SUM(C89,D89,H59)),(SUM(C89,D89,H59)),"Review CN Estimate") -> 0
B90: Total Estimate | C90: =SUM(C85:C88) -> 0 | D90: =SUM(D85:D86,D89) -> 0 | F90: =IF(H80=(SUM(C90,D90,H23,H36,H59)),(SUM(C90,D90,H23,H36,H59)),"Review Estimate") -> 0
B91: * Use combined Defined, Allowance, Contingency Costs and LAP Oversight. Total Phase includes Oversight Costs and Contract Requirements.
B92: Base Estimate Dollar amounts for SMART PORTAL entry: | E92: Risks/Contingency/Unknowns Dollar amounts for SMART PORTAL entry
B93: PE Base Estimate = | D93: =+F85-D85 -> 0 | E93: PE Phase Risk/Contingency/Unknowns = | G93: =D85 -> 0
B94: RW Base Estimate = | D94: =+F86-D86 -> 0 | E94: RW Phase Risk/Contingency/Unknowns = | G94: =D86 -> 0
B95: CN Base Estimate = | D95: =+F87-D87 -> 0 | E95: CN Phase Estimate Risk/Contingency = | G95: =D87 -> 0
E96: CEI amount = | G96: =F88 -> 0
B120: Select
B121: 1
B122: 2
C123: Select | D123: Select | E123: Select
C124: SPLCE | D124: Creation/Pre Scope | E124: Non-Complex (Minor)
C125: PCES | D125: Final Scoping/PFI | E125: Moderately Complex
C126: Bristol Tool | D126: Public Hearing/PI | E126: Most Complex (Major)
C127: Staunton Estimating Spreadsheet Tool | D127: Field Inspection
C128: AASHTO Precon | D128: Pre Adv. Conference
C129: Consultant
C130: Similar Project | D130: Select
C131: Profess. Judgement | D131: Aerial Photo
C132: Norms | D132: Tax Map
C133: Other | D133: Other
C134: Aerial Photo
C135: Tax Map | D135: Pre-Scoping Plans
C136: Pre-Scoping Plans | D136: Scoping Plans
C137: Scoping Plans | D137: F.I. Plans
C138: F.I. Plans | D138: R/W Plans
C139: R/W Plans | D139: PAC Plans
C140: PAC Plans
C142: Locality Type | D142: Arlington County (00) | E142: City of Alexandria (100) | F142: Town of Abingdon (140)
C143: City | D143: Accomack County (01) | E143: City of Bedford (141) | F143: Town of Alberta(161)
C144: County | D144: Albemarle County (02) | E144: City of Bristol (102) | F144: Town of Alta Vista (162)
C145: Town | D145: Alleghany County (03) | E145: City of Buena Vista (103) | F145: Town of Altavista(162)
D146: Amelia County (04) | E146: City of Charlottesville (104) | F146: Town of Appalachia(164)
D147: Amherst County (05) | E147: City of Chesapeake (131) | F147: Town of Ashland (166)
D148: Appomattox County (06) | E148: City of Colonial Heights (105) | F148: Town of Belle Haven(167)
D149: Augusta County (07) | E149: City of Covington (107) | F149: Town of Berryville(168)
D150: Bath County (08) | E150: City of Danville (108) | F150: Town of Big Stone Gap (101)
D151: Bedford County (09) | E151: City of Emporia (109) | F151: Town of Blacksburg (150)
D152: Bland County (10) | E152: City of Fairfax (151) | F152: Town of Blackstone (142)
D153: Botetourt County (11) | E153: City of Falls Church (110) | F153: Town of Bluefield (143)
D154: Brunswick County (12) | E154: City of Franklin (145) | F154: Town of Boones Mill(170)
D155: Buchanan County (13) | E155: City of Fredericksburg (111) | F155: Town of Bridgewater (176)
D156: Buckingham County (14) | E156: City of Galax (113) | F156: Town of Broadway(177)
D157: Campbell County (15) | E157: City of Hampton (114) | F157: Town of Brodnax(178)
D158: Caroline County (16) | E158: City of Harrisonburg (115) | F158: Town of Burkeville(181)
D159: Carroll County (17) | E159: City of Hopewell (116) | F159: Town of Cape Charles(182)
D160: Charles City County (18) | E160: City of Lexington (117) | F160: Town of Cedar Bluff(184)
D161: Charlotte County (19) | E161: City of Lynchburg (118) | F161: Town of Charlotte C.H.(185)
D162: Chesterfield County (20) | E162: City of Manassas (155) | F162: Town of Chase City (186)
D163: Clarke County (21) | E163: City of Manassas Park (152) | F163: Town of Chatham(187)
D164: Craig County (22) | E164: City of Martinsville (120) | F164: Town of Cheriton(188)
D165: Culpeper County (23) | E165: City of Newport News (121) | F165: Town of Chilhowie(189)
D166: Cumberland County (24) | E166: City of Norfolk (122) | F166: Town of Chincoteague (190)
D167: Dickenson County (25) | E167: City of Norton (146) | F167: Town of Christiansburg (154)
D168: Dinwiddie County (26) | E168: City of Petersburg (123) | F168: Town of Clarksville(192)
D169: Essex County (28) | E169: City of Poquoson (147) | F169: Town of Clifton Forge (105)
D170: Fairfax County (29) | E170: City of Portsmouth (124) | F170: Town of Clinchco(339)
D171: Fauquier County (30) | E171: City of Radford (126) | F171: Town of Clintwood(196)
D172: Floyd County (31) | E172: City of Richmond (127) | F172: Town of Coeburn(198)
D173: Fluvanna County (32) | E173: City of Roanoke (128) | F173: Town of Colonial Beach (199)
D174: Franklin County (33) | E174: City of Salem (129) | F174: Town of Craigsville(202)
D175: Frederick County (34) | E175: City of South Boston (130) | F175: Town of Crewe(203)
D176: Giles County (35) | E176: City of Staunton (132) | F176: Town of Culpeper (204)
D177: Gloucester County (36) | E177: City of Suffolk (133) | F177: Town of Damascus(205)
D178: Goochland County (37) | E178: City of Virginia Beach (134) | F178: Town of Dayton(206)
D179: Grayson County (38) | E179: City of Waynesboro (136) | F179: Town of Dillwyn(208)
D180: Greene County (39) | E180: City of Williamsburg (137) | F180: Town of Duffield(211)
D181: Greensville County (40) | E181: City of Winchester (138) | F181: Town of Dumfries (212)
D182: Halifax County (41) | F182: Town of Dungannon(213)
D183: Hanover County (42) | F183: Town of Elkton (216)
D184: Henrico County (43) | F184: Town of Exmore(217)
D185: Henry County (44) | F185: Town of Farmville (144)
D186: Highland County (45) | F186: Town of Floyd(219)
D187: Isle of Wight County (46) | F187: Town of Front Royal (112)
D188: James City County (47) | F188: Town of Gate City(221)
D189: King George County (48) | F189: Town of Glade Spring(222)
D190: King & Queen County (49) | F190: Town of Glasgow(223)
D191: King William County (50) | F191: Town of Gordonsville(225)
D192: Lancaster County (51) | F192: Town of Grottoes (228)
D193: Lee County (52) | F193: Town of Grundy(228)
D194: Loudoun County (53) | F194: Town of Hamilton(232)
D195: Louisa County (54) | F195: Town of Haymarket(233)
D196: Lunenburg County (55) | F196: Town of Herndon (235)
D197: Madison County (56) | F197: Town of Hillsboro(236)
D198: Mathews County (57) | F198: Town of Independence(240)
D199: Mecklenburg County (58) | F199: Town of Irvington(242)
D200: Middlesex County (59) | F200: Town of Kenbridge(247)
D201: Montgomery County (60) | F201: Town of Kilmarnock(249)
D202: Nelson County (62) | F202: Town of La Crosse(250)
D203: New Kent County (63) | F203: Town of Lawrenceville(251)
D204: Northampton County (65) | F204: Town of Lebanon (252)
D205: Northumberland County (66) | F205: Town of Leesburg (253)
D206: Nottoway County (67) | F206: Town of Louisa
D207: Orange County (68) | F207: Town of Lovettsville(255)
D208: Page County (69) | F208: Town of Luray (159)
D209: Patrick County (70) | F209: Town of Madison
D210: Pittsylvania County (71) | F210: Town of Marion (119)
D211: Powhatan County (72) | F211: Town of Middleburg(259)
D212: Prince Edward County (73) | F212: Town of Middletown(260)
D213: Prince George County (74) | F213: Town of Mineral(261)
D214: Prince William County (76) | F214: Town of Monterey(262)
D215: Pulaski County (77) | F215: Town of Mt. Jackson(265)
D216: Rappahannock County (78) | F216: Town of Narrows (266)
D217: Richmond County (79) | F217: Town of New Market(269)
D218: Roanoke County (80) | F218: Town of Nickelsville(271)
D219: Rockbridge County (81) | F219: Town of Occoquan(272)
D220: Rockingham County (82) | F220: Town of Onancock(273)
D221: Russell County (83) | F221: Town of Orange (275)
D222: Scott County (84) | F222: Town of Pearisburg (279)
D223: Shenandoah County (85) | F223: Town of Pennington Gap(281)
D224: Smyth County (86) | F224: Town of Pocahontas(283)
D225: Southampton County (87) | F225: Town of Pulaski (125)
D226: Spotsylvania County (88) | F226: Town of Purcellville(286)
D227: Stafford County (89) | F227: Town of Quantico(287)
D228: Surry County (90) | F228: Town of Remington(288)
D229: Sussex County (91) | F229: Town of Rich Creek(289)
D230: Tazewell County (92) | F230: Town of Richlands (148)
D231: Warren County (93) | F231: Town of Rocky Mount (157)
... 25 more rows

Sheet Cost Estimate Tracking V2
G2: SYIP PROJECTS Project Cost Estimate Tracking V2.1 | H2: UPC: | L2: SYIP PROJECTS Project Cost Estimate Tracking V2.1 | M2: UPC: | Q2: SYIP PROJECTS Project Cost Estimate Tracking V2.1 | R2: UPC: | V2: SYIP PROJECTS Project Cost Estimate Tracking V2.1 | W2: UPC: | AA2: SYIP PROJECTS Project Cost Estimate Tracking V2 | AB2: UPC:
B3: Milestone | E3: Creation/Pre Scope | J3: Final Scoping / Preliminary Field Inspection (PFI) | O3: Public Hearing Team Meeting | T3: Field Inspection Meeting | Y3: Pre-Advertisement Conference Meeting | AD3: Advertisement
B4: Level of Project Development (Design Only) | J4: 0.2 | O4: 0.4 | T4: 0.75 | Y4: 1
B5: PRELIMINARY ENGINEERING PHASE
C6: Project Estimate Component
C7: Discipline | E7: Defined ($) | F7: Allowance | I7: Total | J7: Defined ($) | K7: Allowance | N7: Total | O7: Defined ($) | P7: Allowance | S7: Total | T7: Defined ($) | U7: Allowance | X7: Total | Y7: Defined ($) | Z7: Allowance | AC7: Total
C8: Project Management | AD8: Expenditures
C9: Roadway
C10: Hydraulics
C11: In-Plan Utilities
C12: Traffic
C13: Structures/Bridges
C14: Materials/Geotech
C15: Survey
C16: Environmental
C17: Right-of-Way
C18: Other
C19: VDOT PE Oversight on Local Assistance Projects
C20: SUBTOTAL PE PHASE ESTIMATE | G20: Phase Risk Type Below | L20: - Phase Risk Type Below | Q20: Phase Risk Type Below | V20: Phase Risk Type Below | AA20: Phase Risk Type Below
F21: Phase Contingency (Value of Risk) | K21: Phase Contingency (Value of Risk) | P21: Phase Contingency (Value of Risk) | U21: Phase Contingency (Value of Risk) | Z21: Phase Contingency (Value of Risk)
C22: TOTAL PE PHASE ESTIMATE
C23: PE Base Estimate Date (XX/XXXX)
C24: PE Phase Start Date (XX/XX/XXXX) | H24: End Date | M24: End Date | R24: End Date | W24: End Date | AB24: End Date
B25: RIGHT OF WAY AND UTILITIES PHASE
C26: Discipline | E26: Defined ($) | F26: Allowance | G26: Select Phase Risk Type Here (if using different contingency values for each discipline) | H26: Contingency (Value of Risk) | I26: Total | J26: Defined ($) | K26: Allowance | L26: Select Phase Risk Type Here (if using different contingency values for each discipline) | N26: Total | O26: Defined ($) | P26: Allowance | Q26: Select Phase Risk Type Here (if using different contingency values for each discipline) | S26: Total | T26: Defined ($) | U26: Allowance | V26: Select Phase Risk Type Here (if using different contingency values for each discipline) | X26: Total | Y26: Defined ($) | Z26: Allowance | AA26: Select Phase Risk Type Here (if using different contingency values for each discipline) | AB26: =IF(AA26="Type 1 Percentage","Contingency % (Value of Risk)",IF(AA26="Type 2 Deterministic","Contingency $ (Value of Risk)","Contingency (Value of Risk)")) -> Contingency (Value of Risk) | AC26: Total
C27: Right-of-Way | AD27: Expenditures
C28: Utilities
C29: VDOT Project RW Oversight
C30: VDOT RW/UT Oversight on Local Assistance Projects
D32: SUBTOTAL RW PHASE ESTIMATE | G32: RW Avg Contingency: | L32: RW Avg Contingency: | Q32: RW Avg Contingency: | V32: RW Avg Contingency: | AA32: RW Avg Contingency:
F33: Phase Contingency (Value of Risk) | G33: Select Phase Risk Type Here (if using one phase contingency value) | K33: Phase Contingency (Value of Risk) | L33: Select Phase Risk Type Here (if using one phase contingency value) | P33: Phase Contingency (Value of Risk) | Q33: Select Phase Risk Type Here (if using one phase contingency value) | U33: Phase Contingency (Value of Risk) | V33: Select Phase Risk Type Here (if using one phase contingency value) | Z33: Phase Contingency (Value of Risk) | AA33: Select Phase Risk Type Here (if using one phase contingency value)
C34: TOTAL RW PHASE ESTIMATE
C35: Base Estimate Date (XX/XXXX)
C36: Planned R/W Start Date (XX/XX/XXXX) | H36: End Date | M36: End Date | R36: End Date | W36: End Date | AB36: End Date
C37: CONSTRUCTION PHASE
C38: Discipline | E38: Defined ($) | F38: Allowance | G38: Risk Type | H38: Contingency (Value of Risk) | I38: Total | J38: Defined ($) | K38: Allowance | L38: Risk Type | M38: Contingency (Value of Risk) | N38: Total | O38: Defined ($) | P38: Allowance | Q38: Risk Type | R38: Contingency (Value of Risk) | S38: Total | T38: Defined ($) | U38: Allowance | V38: Risk Type | W38: Contingency (Value of Risk) | X38: Total | Y38: Defined ($) | Z38: Allowance | AA38: Risk Type | AB38: Contingency (Value of Risk) | AC38: Total
C39: Bid Items | D39: Mobilization/Constr. Support
D40: MOT
D41: Roadway
D42: Hydraulics
D43: In-plan Utilities
D44: Traffic
D45: Structures/Bridges
D46: Earthwork/Geotech
D47: Environmental/Soundwalls
D48: Other
C49: Total Bid Items
C50: VDOT Project CN Oversight
C51: VDOT CN Oversight on Local Assistance Projects
H52: Oversight Total: | M52: Oversight Total: | R52: Oversight Total: | W52: Oversight Total: | AB52: Oversight Total:
C53: Management Reserve / Construction Contract Contingency Per IIM-LD-249 | D53: Select
C54: Railroad Flagging/Coordination
C55: State Forces
C56: State Police
C57: Contract Incentive / Disincentive (5% max) | D57: Select
C58: Total Non-Bid Items | G58: CN Avg Contingency: | L58: CN Avg Contingency: | Q58: CN Avg Contingency: | V58: CN Avg Contingency: | AA58: CN Avg Contingency:
F59: Phase Contingency (Value of Risk) | K59: Phase Contingency (Value of Risk) | P59: Phase Contingency (Value of Risk) | U59: Phase Contingency (Value of Risk) | Z59: Phase Contingency (Value of Risk)
H60: TOTAL CN PHASE ESTIMATE (without CEI) | M60: TOTAL CN PHASE ESTIMATE (without CEI) | R60: TOTAL CN PHASE ESTIMATE (without CEI) | W60: TOTAL CN PHASE ESTIMATE (without CEI) | AB60: TOTAL CN PHASE ESTIMATE (without CEI)
C61: Construction Engineering (CEI) Source:
C62: CEI Environmental Inspection
C63: CEI VDOT or Locality
C64: CEI Oversight Costs
H65: Total CEI: | M65: Total CEI: | R65: Total CEI: | W65: Total CEI: | AB65: Total CEI:
M66: Total CN Estimate | W66: Total CN Estimate | AB66: Total CN Estimate
C67: Phase dates (XX/XX/XXXX) | D67: CN Base Estimate Date | X67: 2
D68: Start Date | X68: 2
D69: End Date
H73: Total Project Cost Estimate: | M73: Total Project Cost Estimate: | R73: Total Project Cost Estimate: | W73: Total Project Cost Estimate: | AB73: Total Project Cost Estimate:

Sheet Assumptions Tracking
A1: SYIP PROJECTS
A2: DOCUMENTATION OF ASSUMPTIONS AND CHANGE COMMENTS
A4: Preliminary Engineering | B4: Creation / Pre-scope (prior to project initiation) | C4: Final Scoping / Preliminary Field Inspection (PFI) | D4: Public Hearing Team Meeting | E4: Field Inspection Meeting | F4: Pre-advertisement Conference Team Meeting
A5: Project Management
A6: Roadway
A7: Hydraulics
A8: In-Plan Utilities
A9: Traffic
A10: Structures/Bridges
A11: Materials/Geotech
A12: Survey
A13: Environmental
A14: Right-of-Way
A15: Other
A16: VDOT PE Oversight on Local Assistance Projects
A17: Right-of-Way & Utilities
A18: Right-of-Way
A19: Utilities
A20: VDOT Project RW Oversight
A21: VDOT RW/UT Oversight on Local Assistance Projects
A22: Construction
A23: Mobilization/Constr. Support
A24: MOT
A25: Roadway
A26: Hydraulics
A27: In-plan Utilities
A28: Traffic
A29: Structures/Bridges
A30: Earthwork/Geotech
A31: Environmental/Soundwalls
A32: Other
A33: VDOT Project CN Oversight
A34: VDOT CN Oversight on Local Assistance Projects
A35: Management Reserve / Construction Contract Contingency Per IIM-LD-249
A36: Railroad Flagging/Coordination
A37: State Forces
A38: State Police
A39: Contract Requirements (Incentive/Disincentive; 5% max)

Sheet Inflation Summary & Upload
B4: Inflation Factors | C4: Future Cost (including inflation)
B6: Inflation** | C6: Total Cost***
A7: PE Phase Estimate | B7: =IFERROR('Inflation Tables'!F4,1) -> 1 | C7: ='Cost Estimate Summary'!F85*B7 -> 0
A8: RW Phase Estimate | B8: =IFERROR('Inflation Tables'!N4,1) -> 1 | C8: ='Cost Estimate Summary'!F86*B8 -> 0
A9: CN Phase Estimate(without CEI) | B9: =IFERROR('Inflation Tables'!X4,1) -> 1 | C9: ='Cost Estimate Summary'!F87*B9 -> 0
A10: Total CEI | B10: =IFERROR('Inflation Tables'!X4,1) -> 1 | C10: ='Cost Estimate Summary'!F88*B10 -> 0
A11: CN Phase Estimate(with CEI) | B11: =IFERROR('Inflation Tables'!X4,1) -> 1 | C11: ='Cost Estimate Summary'!F89*B11 -> 0
A12: Total Estimate | B12: Total: | C12: =SUM(C7:C8)+C11 -> 0
B14: ** Inflation rates taken from VDOT Inflation/Escalation Memorandum, Dated 7/7/2023
B15: *** Total Costs should match with total costs output from SMART Portal.
A18: INSTRUCTIONS FOR TRANSFERING A CEWB ESTIMATE INTO A PCES(Workbook)
A19: 1. Download the current version of the PCES workbook for your project from the PCES site and save to you computer (you do not need to open it yet)
A20: 2. Click the "Transfer CEWB to PCES" button below.
A21: 3. After you click the button you will be prompted to open your PCES workbook. After opening the workbook, the following will happen automatically: a. The inflated PE, RW and CN estimate will be populated in the MANUAL tab, along with standard phase comments. b. The PE, RW, Utility and CN phase will all be set to “Manual” on the SUMMARY tab. c. The Ad Year and Construction End Year cells will be set to “FY2022” to avoid any inflation calculations in PCES. d. The estimate shown in the SUMMARY tab should match the inflated estimate from your CEWB.
A22: 4. Review the standard phase comments imported and adjust the comments in the "MANUAL" tab for specificity regarding your estimate.
A23: 5. Save the updated PCES workbook for upload to the PCES site.

Sheet Inflation Tables (hidden)
A2: PE PHASE | I2: RW Phase | S2: CN Phase
A3: application fiscal year | B3: region_code | C3: FY for Phase Start | D3: Phase | E3: Multiplier | F3: PE Inflation Multiplier: | I3: application fiscal year | J3: region_code | K3: FY for Phase Start | L3: Phase | M3: Multiplier | N3: RW Inflation Multiplier: | S3: application fiscal year | T3: region_code | U3: FY for Phase Start | V3: Phase | W3: Multiplier | X3: CN Inflation Multiplier:
A4: 2024 | B4: V1P1 | C4: 2024 | D4: PE | E4: 1 | F4: =INDEX(E4:E136, MATCH(1, (F7=C4:C136) * (F8=D4:D136), 0)) ->  | I4: 2024 | J4: V1R5 | K4: 2024 | L4: RW | M4: 1 | N4: =INDEX(M4:M128, MATCH(1, (N7=K4:K128) * (N8=L4:L128), 0)) ->  | S4: 2024 | T4: V1C5 | U4: 2024 | V4: CN | W4: 1 | X4: =INDEX(W4:W136, MATCH(1, (X7=U4:U136) * (X8=V4:V136), 0)) -> 
A5: 2024 | B5: V1P1 | C5: 2025 | D5: PE | E5: 1.05 | I5: 2024 | J5: V1R5 | K5: 2025 | L5: RW | M5: 1.05 | S5: 2024 | T5: V1C5 | U5: 2025 | V5: CN | W5: 1.05
A6: 2024 | B6: V1P1 | C6: 2026 | D6: PE | E6: 1.1025 | F6: Fiscal Year | I6: 2024 | J6: V1R5 | K6: 2026 | L6: RW | M6: 1.1025 | N6: Fiscal Year | S6: 2024 | T6: V1C5 | U6: 2026 | V6: CN | W6: 1.1025 | X6: Fiscal Year
A7: 2024 | B7: V1P1 | C7: 2027 | D7: PE | E7: 1.1576 | F7: =YEAR('Cost Estimate Summary'!D28)+IF(MONTH('Cost Estimate Summary'!D28)>=7,1,0) -> 1900 | I7: 2024 | J7: V1R5 | K7: 2027 | L7: RW | M7: 1.1576 | N7: =YEAR('Cost Estimate Summary'!D42)+IF(MONTH('Cost Estimate Summary'!D42)>=7,1,0) -> 1900 | S7: 2024 | T7: V1C5 | U7: 2027 | V7: CN | W7: 1.1576 | X7: =YEAR('Cost Estimate Summary'!D77)+IF(MONTH('Cost Estimate Summary'!D77)>=7,1,0) -> 1900
A8: 2024 | B8: V1P1 | C8: 2028 | D8: PE | E8: 1.2155 | F8: =IF('Cost Estimate Summary'!D28>1,"PE","") ->  | I8: 2024 | J8: V1R5 | K8: 2028 | L8: RW | M8: 1.2155 | N8: =IF('Cost Estimate Summary'!D42>1,"RW","") ->  | S8: 2024 | T8: V1C5 | U8: 2028 | V8: CN | W8: 1.2155 | X8: =IF('Cost Estimate Summary'!D77>1,"CN","") -> 
A9: 2024 | B9: V1P1 | C9: 2029 | D9: PE | E9: 1.2763 | I9: 2024 | J9: V1R5 | K9: 2029 | L9: RW | M9: 1.2763 | S9: 2024 | T9: V1C5 | U9: 2029 | V9: CN | W9: 1.2763
A10: 2024 | B10: V1P1 | C10: 2030 | D10: PE | E10: 1.3401 | I10: 2024 | J10: V1R5 | K10: 2030 | L10: RW | M10: 1.3401 | S10: 2024 | T10: V1C5 | U10: 2030 | V10: CN | W10: 1.3401
A11: 2024 | B11: V1P1 | C11: 2031 | D11: PE | E11: 1.3803 | I11: 2024 | J11: V1R5 | K11: 2031 | L11: RW | M11: 1.3803 | S11: 2024 | T11: V1C5 | U11: 2031 | V11: CN | W11: 1.3803
A12: 2024 | B12: V1P1 | C12: 2032 | D12: PE | E12: 1.4217 | I12: 2024 | J12: V1R5 | K12: 2032 | L12: RW | M12: 1.4217 | S12: 2024 | T12: V1C5 | U12: 2032 | V12: CN | W12: 1.4217
A13: 2024 | B13: V1P1 | C13: 2033 | D13: PE | E13: 1.4644 | I13: 2024 | J13: V1R5 | K13: 2033 | L13: RW | M13: 1.4644 | S13: 2024 | T13: V1C5 | U13: 2033 | V13: CN | W13: 1.4644
A14: 2024 | B14: V1P1 | C14: 2034 | D14: PE | E14: 1.5083 | I14: 2024 | J14: V1R5 | K14: 2034 | L14: RW | M14: 1.5083 | S14: 2024 | T14: V1C5 | U14: 2034 | V14: CN | W14: 1.5083
C25: 2021 Values | D25: 2022 Values | E25: 2023 Values
B26: 2023 | C26: 1.03 | D26: 0
B27: 2024 | C27: 1.0609 | D27: 0.08
B28: 2025 | C28: 1.092727 | D28: 0.134
B29: 2026 | C29: 1.1255 | D29: 0.1907
B30: 2027 | C30: 1.159274074 | D30: 0.250235
B31: 2028 | C31: 1.194052297 | D31: 0.31274675
B32: 2029 | C32: 1.229873865 | D32: 0.3783840875
B33: 2030 | C33: 1.266770081 | D33: 0.4197356101
B34: 2031 | C34: 1.304773184 | D34: 0.4623276784
B35: 2032 | C35: 1.343916379 | D35: 0.5061975088
B36: 2033 | C36: 1.384233871 | D36: 0.551383434
B38: 2023 | C38: 1.03
B39: 2024 | C39: 1.0609
B40: 2025 | C40: =ROUND(1.092727,4) -> 1.0927
B41: 2026 | C41: =ROUND(1.12550881,4) -> 1.1255
B42: 2027 | C42: =ROUND(1.1592740743,4) -> 1.1593
B43: 2028 | C43: =ROUND(1.194052296529,4) -> 1.1941
B44: 2029 | C44: =ROUND(1.22987386542487,4) -> 1.2299
B45: 2030 | C45: =ROUND(1.26677008138762,4) -> 1.2668
B46: 2031 | C46: =ROUND(1.30477318382924,4) -> 1.3048
B47: 2032 | C47: =ROUND(1.34391637934412,4) -> 1.3439
B48: 2033 | C48: =ROUND(1.38423387072445,4) -> 1.3842
B50: 2023 | C50: =ROUND(1.03718181818182,4) -> 1.0372
B51: 2024 | C51: =ROUND(1.07574612396694,4) -> 1.0757
B52: 2025 | C52: =ROUND(1.11574432075808,4) -> 1.1157
B53: 2026 | C53: =ROUND(1.1572297232299,4) -> 1.1572
B54: 2027 | C54: =ROUND(1.20025762839363,4) -> 1.2003
B55: 2028 | C55: =ROUND(1.2448853893039,4) -> 1.2449
B56: 2029 | C56: =ROUND(1.2911724915062,4) -> 1.2912
B57: 2030 | C57: =ROUND(1.33918063232675,4) -> 1.3392
B58: 2031 | C58: =ROUND(1.38897380311054,4) -> 1.389
B59: 2032 | C59: =ROUND(1.4406183745171,4) -> 1.4406
B60: 2033 | C60: =ROUND(1.49418318498778,4) -> 1.4942

Sheet Sliding Scales (hidden)
D2: MEDIAN CONTINGENCY RANGE (Non-Complex Projects)
E3: Pre-Scoping | F3: Scoping /PFI Meeting ±20% | G3: Preliminary Design / Public Hearing Team Meeting ±40% | H3: Detailed Design / Field Inspection Meeting ±75% | I3: Final Design / PAC 100%
D4: High | E4: 55 | F4: 45 | G4: 30 | H4: 22 | I4: 15
D5: MLE | E5: 35 | F5: 30 | G5: 20 | H5: 15 | I5: 8
D6: Low | E6: 23 | F6: 20 | G6: 15 | H6: 10 | I6: 5
D8: Moderately Complex
E9: Pre-Scoping | F9: Scoping /PFI Meeting ±20% | G9: Preliminary Design / Public Hearing Team Meeting ±40% | H9: Detailed Design / Field Inspection Meeting ±75% | I9: Final Design / PAC 100%
D10: High | E10: 75 | F10: 60 | G10: 40 | H10: 30 | I10: 18
D11: MLE | E11: 50 | F11: 40 | G11: 30 | H11: 20 | I11: 10
D12: Low | E12: 30 | F12: 25 | G12: 20 | H12: 12 | I12: 7
D14: Most Complex (Major)
E15: Pre-Scoping | F15: Scoping /PFI Meeting ±20% | G15: Preliminary Design / Public Hearing Team Meeting ±40% | H15: Detailed Design / Field Inspection Meeting ±75% | I15: Final Design / PAC 100%
D16: High | E16: 100 | F16: 75 | G16: 40 | H16: 30 | I16: 18
D17: MLE | E17: 60 | F17: 50 | G17: 30 | H17: 20 | I17: 10
D18: Low | E18: 40 | F18: 33 | G18: 20 | H18: 12 | I18: 7
C24: VDOT Generated Charts from AASHTO Data
B25: Select Project Classification | E25: AASHTO ORIGINAL CHARTS BELOW
B26: Non-Complex (Minor) | K26: Moderately Complex | L26: =INDEX(pictures,MATCH('Cost Estimate Summary'!C7:D7,Projects,0)) -> 
B27: Moderately Complex
B28: Most Complex (Major)
